bitfinex-derivatives/quotes_BTCF0:USTF0_20250209
["timestamp","ask_amount","ask_price","bid_price","bid_amount"]
[1739081211313,0.001,96942.0,96941.0,0.0324]
[1739081211518,0.002,96942.0,96941.0,0.0334]
[1739081213827,0.002,96942.0,96941.0,0.003]
[1739081214523,0.001,96942.0,96940.0,0.2062798]
[1739081214830,0.002,96942.0,96941.0,0.003]
[1739081215320,0.001,96942.0,96941.0,0.002]
[1739081215522,0.002,96942.0,96941.0,0.003]
[1739081217928,0.001,96942.0,96941.0,0.002]
[1739081218128,0.002,96942.0,96941.0,0.003]
[1739081218624,0.05216121,96942.0,96941.0,0.003]
[1739081221633,0.08336121,96942.0,96941.0,0.003]
[1739081224334,0.08336121,96942.0,96914.0,0.033]
[1739081224335,0.206312,96926.0,96914.0,0.033]
[1739081224535,0.3914,96925.0,96911.0,0.06884]
[1739081224929,0.3914,96925.0,96910.0,0.07348421]
[1739081225433,0.3914,96925.0,96915.0,0.2063341]
[1739081225643,0.3914,96925.0,96916.0,0.39144826]
[1739081226327,0.3944,96925.0,96916.0,0.39144826]
[1739081226720,0.3944,96925.0,96916.0,0.18511596]
[1739081226922,0.3658,96925.0,96923.0,0.2063169]
[1739081227124,0.005,96925.0,96923.0,0.2063169]
[1739081227334,0.005,96925.0,96924.0,0.031]
[1739081227533,0.006,96925.0,96924.0,0.0638]
[1739081228037,0.001,96925.0,96924.0,0.0957]
[1739081228337,0.002,96925.0,96924.0,0.0957]
[1739081229627,0.05216121,96925.0,96924.0,0.0957]
[1739081230730,0.05216121,96925.0,96924.0,0.10403499]
[1739081231628,0.05116121,96925.0,96924.0,0.10403499]
[1739081231829,0.05216121,96925.0,96924.0,0.10403499]
[1739081232445,0.05116121,96925.0,96924.0,0.10403499]
[1739081232639,0.00015479,96931.0,96930.0,0.2063031]
[1739081232828,0.00015479,96931.0,96930.0,0.5671031]
[1739081233843,0.00215479,96931.0,96930.0,0.5671031]
[1739081234234,0.00015479,96931.0,96930.0,0.5671031]
[1739081235542,0.00115479,96931.0,96930.0,0.5671031]
[1739081236234,0.00915479,96931.0,96930.0,0.5671031]
[1739081236946,0.00915479,96931.0,96930.0,0.5681031]
[1739081237542,0.01815479,96931.0,96930.0,0.5671031]
[1739081237942,0.00915479,96931.0,96930.0,0.5671031]
[1739081238132,0.00215479,96931.0,96930.0,0.5671031]
[1739081238846,0.01115479,96931.0,96930.0,0.5671031]
[1739081239047,0.18484873,96955.0,96952.0,0.2062563]
[1739081241052,0.3618,96953.0,96952.0,0.2072563]
[1739081241344,0.3618,96953.0,96952.0,0.2162563]
[1739081241345,0.3628,96953.0,96952.0,0.2162563]
[1739081241545,0.3618,96953.0,96952.0,0.2152563]
[1739081241747,0.3628,96953.0,96952.0,0.2162563]
[1739081243249,0.3628,96953.0,96952.0,0.2182563]
[1739081244637,0.002,96953.0,96952.0,0.2182563]
[1739081257366,0.05215503,96953.0,96952.0,0.2182563]
[1739081259766,0.05115503,96953.0,96952.0,0.2152563]
[1739081260068,0.05215503,96953.0,96952.0,0.2172563]
[1739081261675,0.002,96953.0,96952.0,0.2172563]
[1739081267173,0.001,96953.0,96952.0,0.003]
[1739081267480,0.002,96953.0,96952.0,0.2172563]
[1739081267976,0.001,96953.0,96952.0,0.2092563]
[1739081268274,0.002,96953.0,96952.0,0.2172563]
[1739081268866,0.001,96953.0,96952.0,0.2142563]
[1739081269173,0.002,96953.0,96952.0,0.2172563]
[1739081269573,0.001,96953.0,96952.0,0.2092563]
[1739081269773,0.001,96953.0,96952.0,0.2172563]
[1739081269774,0.05215738,96953.0,96952.0,0.2172563]
[1739081270074,0.05115738,96953.0,96952.0,0.2142563]
[1739081270278,0.05215738,96953.0,96952.0,0.2172563]
[1739081270570,0.05215738,96953.0,96952.0,0.2142563]
[1739081270780,0.05215738,96953.0,96952.0,0.2172563]
[1739081271268,0.05115738,96953.0,96952.0,0.2092563]
[1739081271474,0.05215738,96953.0,96952.0,0.2172563]
[1739081273579,0.002,96953.0,96952.0,0.2172563]
[1739081281073,0.002,96953.0,96952.0,0.5780563]
[1739081281281,0.0311,96969.0,96961.0,0.2062371]
[1739081282888,0.00215479,96962.0,96961.0,0.2172371]
[1739081291082,0.00115479,96962.0,96961.0,0.2092371]
[1739081291291,0.00215479,96962.0,96961.0,0.2172371]
[1739081291797,0.00115479,96962.0,96961.0,0.2142371]
[1739081292094,0.00215479,96962.0,96961.0,0.2182371]
[1739081296198,0.36295479,96962.0,96961.0,0.2182371]
[1739081304599,0.41310467,96962.0,96961.0,0.2182371]
[1739081311408,0.41110467,96962.0,96961.0,0.2132371]
[1739081311600,0.41310467,96962.0,96961.0,0.2222371]
[1739081312611,0.36295479,96962.0,96961.0,0.2222371]
[1739081312814,0.00215479,96962.0,96961.0,0.2222371]
[1739081319610,0.18441235,96975.0,96961.0,0.2222371]
[1739081319611,0.36234748,96980.0,96962.0,0.0515585]
[1739081319812,0.36234748,96980.0,96970.0,0.09653028]
[1739081321214,0.36434748,96980.0,96979.0,0.2061989]
[1739081321632,0.36234748,96980.0,96979.0,0.2061989]
[1739081322715,0.36234748,96980.0,96979.0,0.2091989]
[1739081324210,0.36234748,96980.0,96979.0,0.2141989]
[1739081332126,0.36234748,96980.0,96979.0,0.2111989]
[1739081332331,0.36234748,96980.0,96979.0,0.2161989]
[1739081332733,0.36234748,96980.0,96979.0,0.2171989]
[1739081333525,0.36234748,96980.0,96979.0,0.2191989]
[1739081339235,0.00154748,96980.0,96979.0,0.2191989]
[1739081346629,0.00015471,96985.0,96984.0,0.2061883]
[1739081347831,0.00015471,96985.0,96984.0,0.2081883]
[1739081348031,0.00015471,96985.0,96984.0,0.2141883]
[1739081351239,0.00015471,96985.0,96984.0,0.008]
[1739081351740,0.206211,96974.0,96968.0,0.2062218]
[1739081351935,0.3608,96969.0,96968.0,0.2062218]
[1739081352137,0.3608,96969.0,96965.0,0.18527067]
[1739081352537,0.2062227,96968.0,96965.0,0.18527067]
[1739081352747,0.00015471,96985.0,96984.0,0.2061883]
[1739081353146,0.00015471,96985.0,96978.0,0.2062007]
[1739081353352,0.00015471,96985.0,96979.0,0.206197]
[1739081353843,0.00015471,96985.0,96984.0,0.2061883]
[1739081354935,0.03285471,96985.0,96984.0,0.2061883]
[1739081355348,0.03285471,96985.0,96984.0,0.2071883]
[1739081357141,0.33285471,96985.0,96965.0,0.00015471]
[1739081357341,0.3608,96966.0,96936.0,0.0309]
[1739081357536,0.3608,96955.0,96889.0,0.79345064]
[1739081357737,0.3608,96943.0,96924.0,0.00887433]
[1739081358043,0.3608,96943.0,96936.0,0.2062896]
[1739081358242,0.3608,96943.0,96930.0,0.04826514]
[1739081358446,0.3608,96943.0,96938.0,0.2062858]
[1739081358651,0.3608,96943.0,96941.0,0.24722286]
[1739081359051,0.5670773,96943.0,96941.0,0.24722286]
[1739081359253,0.5670773,96943.0,96942.0,0.009]
[1739081360549,0.57653102,96943.0,96942.0,0.018]
[1739081360750,0.3608,96943.0,96942.0,0.018]
[1739081360948,0.00015471,96952.0,96951.0,0.2062584]
[1739081362655,0.00015471,96952.0,96951.0,0.2132584]
[1739081362858,0.00015471,96952.0,96951.0,0.2182584]
[1739081369755,0.3608,96979.0,96951.0,0.02115396]
[1739081369955,0.3608,96979.0,96969.0,0.07358836]
[1739081370153,0.3608,96979.0,96977.0,0.2062021]
[1739081370762,0.3648,96979.0,96977.0,0.2062021]
[1739081371257,0.004,96979.0,96977.0,0.2062021]
[1739081372361,0.00154749,96986.0,96983.0,0.2061888]
[1739081373867,0.00154749,96986.0,96984.0,0.2061865]
[1739081382271,0.3608,96985.0,96984.0,0.2061865]
[1739081384167,0.3608,96985.0,96984.0,0.2071865]
[1739081388983,0.36990729,96985.0,96984.0,0.2071865]
[1739081389479,0.00910729,96985.0,96984.0,0.2071865]
[1739081389689,0.3608,96985.0,96984.0,0.2071865]
[1739081389874,0.00154749,96986.0,96984.0,0.2071865]
[1739081390075,0.3608,96985.0,96984.0,0.2071865]
[1739081391087,0.3608,96985.0,96984.0,0.2061865]
[1739081391998,0.3608,96985.0,96984.0,0.2071865]
[1739081392186,0.01103317,96986.0,96984.0,0.2071865]
[1739081392596,0.3608,96985.0,96984.0,0.2071865]
[1739081393495,0.3608,96985.0,96984.0,0.2061865]
[1739081394298,0.3608,96985.0,96984.0,0.2071865]
[1739081396700,0.41094147,96985.0,96984.0,0.2071865]
[1739081404590,0.61712767,96985.0,96984.0,0.2071865]
[1739081412606,0.41094147,96985.0,96984.0,0.2071865]
[1739081416307,0.05014147,96985.0,96984.0,0.2071865]
[1739081416506,0.41094147,96985.0,96984.0,0.2071865]
[1739081431817,0.41094147,96985.0,96984.0,0.2091865]
[1739081432316,0.05014147,96985.0,96984.0,0.2081865]
[1739081432515,0.05014147,96985.0,96984.0,0.2111865]
[1739081436021,0.00015471,96988.0,96984.0,0.2111865]
[1739081436022,0.00015471,96988.0,96987.0,0.2061819]
[1739081437229,0.00015471,96988.0,96987.0,0.2081819]
[1739081437429,0.00015471,96988.0,96987.0,0.2091819]
[1739081439821,0.05029195,96988.0,96987.0,0.2091819]
[1739081442730,0.05029195,96988.0,96987.0,0.21857115]
[1739081443329,0.00015471,96988.0,96987.0,0.21857115]
[1739081446534,0.00015471,96988.0,96987.0,0.21657115]
[1739081446832,0.00015471,96988.0,96987.0,0.21857115]
[1739081447222,0.00015471,96988.0,96987.0,0.22257115]
[1739081448332,0.00015471,96988.0,96987.0,0.22757115]
[1739081449329,0.18453314,96997.0,96987.0,0.02138925]
[1739081449532,0.18453314,96997.0,96996.0,0.2061628]
[1739081450134,0.3608,97019.0,97000.0,0.0515384]
[1739081450330,0.15569285,97015.0,97014.0,0.2061245]
[1739081450632,0.15569285,97015.0,97014.0,0.2753645]
[1739081451926,0.15569285,97015.0,97014.0,0.2803645]
[1739081452433,0.00015463,97017.0,97016.0,0.2061203]
[1739081453732,0.00015463,97017.0,97016.0,0.2101203]
[1739081454538,0.00015463,97017.0,97016.0,0.2161203]
[1739081471143,0.00015463,97017.0,97016.0,0.2850403]
[1739081473544,0.00015463,97017.0,97016.0,0.2161203]
[1739081475042,0.00015463,97017.0,97016.0,0.01]
[1739081475257,0.00015463,97017.0,97004.0,0.2061447]
[1739081475443,0.3608,97005.0,97004.0,0.2061447]
[1739081476845,0.3608,97005.0,97004.0,0.2111447]
[1739081478246,0.3608,97005.0,97004.0,0.2171447]
[1739081478851,0.3608,97005.0,97004.0,0.2061447]
[1739081479042,0.3608,97005.0,97004.0,0.2161447]
[1739081479953,0.00941994,97005.0,97004.0,0.2161447]
[1739081480145,0.3608,97005.0,97004.0,0.2121447]
[1739081480354,0.3608,97005.0,97004.0,0.2101447]
[1739081480546,0.3608,97005.0,97004.0,0.2161447]
[1739081481257,0.21566827,97006.0,97004.0,0.2161447]
[1739081481454,0.3608,97005.0,97004.0,0.2161447]
[1739081483552,0.3608,97005.0,97004.0,0.2151447]
[1739081484254,0.3608,97005.0,97004.0,0.2161447]
[1739081489866,0.2061422,97006.0,97004.0,0.2161447]
[1739081490066,0.3608,97005.0,97004.0,0.2161447]
[1739081491168,0.3608,97005.0,97004.0,0.2151447]
[1739081491861,0.3608,97005.0,97004.0,0.2101447]
[1739081492067,0.3608,97005.0,97004.0,0.2161447]
[1739081492960,0.2061422,97006.0,97004.0,0.2161447]
[1739081493160,0.3608,97005.0,97004.0,0.2161447]
[1739081494074,0.3608,97005.0,97004.0,0.2101447]
[1739081494371,0.3608,97005.0,97004.0,0.2151447]
[1739081494962,0.3608,97005.0,97004.0,0.2101447]
[1739081495157,0.3608,97005.0,97004.0,0.2161447]
[1739081497675,0.21668416,97012.0,97004.0,0.2161447]
[1739081497870,0.3608,97005.0,97004.0,0.2161447]
[1739081498463,0.21672415,97012.0,97004.0,0.01]
[1739081498777,0.21580415,97012.0,97004.0,0.003]
[1739081498970,0.2061326,97011.0,97005.0,0.2061432]
[1739081499166,0.2061326,97011.0,97004.0,0.003]
[1739081499366,0.2061326,97011.0,97006.0,0.2061405]
[1739081499566,0.2061326,97011.0,97004.0,0.006]
[1739081499973,0.2061326,97011.0,97008.0,0.2061368]
[1739081500874,0.3608,97009.0,97008.0,0.2061368]
[1739081501171,0.3608,97009.0,97008.0,0.2091368]
[1739081502285,0.3608,97009.0,97008.0,0.2111368]
[1739081503383,0.3608,97009.0,97008.0,0.2121368]
[1739081507481,0.5669352,97009.0,97008.0,0.2121368]
[1739081507686,0.2061352,97009.0,97008.0,0.2121368]
[1739081508081,0.5669352,97009.0,97008.0,0.2121368]
[1739081509689,0.2061352,97009.0,97008.0,0.2121368]
[1739081510087,0.5669352,97009.0,97008.0,0.2121368]
[1739081515394,0.5669352,97009.0,97008.0,0.006]
[1739081516393,0.75185859,97009.0,97008.0,0.006]
[1739081519790,0.6287285,97009.0,97008.0,0.006]
[1739081539111,0.9895285,97009.0,97008.0,0.006]
[1739081539405,0.2679285,97009.0,97008.0,0.006]
[1739081539609,0.9895285,97009.0,97008.0,0.006]
[1739081539803,0.2679285,97009.0,97008.0,0.006]
[1739081540006,0.9895285,97009.0,97008.0,0.006]
[1739081540205,1.06524841,97009.0,97008.0,0.006]
[1739081546905,0.9895285,97009.0,97008.0,0.006]
[1739081553511,1.06524957,97009.0,97008.0,0.006]
[1739081554223,1.06524957,97009.0,97008.0,0.2121373]
[1739081556625,0.9895285,97009.0,97008.0,0.2121373]
[1739081558625,0.6287285,97009.0,97008.0,0.2121373]
[1739081562221,0.4225933,97009.0,97008.0,0.2121373]
[1739081573632,0.6287285,97009.0,97008.0,0.2121373]
[1739081574437,0.6287285,97009.0,96992.0,0.0610463]
[1739081574438,0.2061549,97003.0,96973.0,0.06752]
[1739081574636,0.3608,96999.0,96998.0,0.20631313]
[1739081574939,0.5669564,96999.0,96998.0,0.20631313]
[1739081576037,0.7871564,96999.0,96998.0,0.21331313]
[1739081576248,0.8546764,96999.0,96998.0,0.01215463]
[1739081576742,0.86463364,96999.0,96998.0,0.01315463]
[1739081576945,0.86463364,96999.0,96998.0,0.01415463]
[1739081577533,0.9765584,96999.0,96998.0,0.01415463]
[1739081578246,1.3373584,96999.0,96998.0,0.01415463]
[1739081581147,1.3373584,96999.0,96985.0,0.2061858]
[1739081581148,0.2061841,96986.0,96985.0,0.2061858]
[1739081581327,0.5669841,96986.0,96985.0,0.2061858]
[1739081582442,0.5679841,96986.0,96985.0,0.2151858]
[1739081582840,0.5679841,96986.0,96985.0,0.2241858]
[1739081583340,0.2071841,96986.0,96985.0,0.2241858]
[1739081583543,0.5679841,96986.0,96985.0,0.2241858]
[1739081587244,0.57767783,96986.0,96985.0,0.2241858]
[1739081595441,0.57767783,96986.0,96985.0,0.018]
[1739081600953,0.21687783,96986.0,96985.0,0.018]
[1739081601146,0.57767783,96986.0,96985.0,0.018]
[1739081601350,0.21687783,96986.0,96985.0,0.018]
[1739081601547,0.57767783,96986.0,96985.0,0.018]
[1739081603960,0.21687783,96986.0,96985.0,0.018]
[1739081604151,0.57767783,96986.0,96985.0,0.018]
[1739081605156,0.21687783,96986.0,96985.0,0.018]
[1739081605357,0.57767783,96986.0,96985.0,0.018]
[1739081606556,0.21687783,96986.0,96985.0,0.018]
[1739081606743,0.57767783,96986.0,96985.0,0.018]
[1739081610160,0.62781299,96986.0,96985.0,0.018]
[1739081611250,0.62781299,96986.0,96985.0,0.2241862]
[1739081614551,0.26701299,96986.0,96985.0,0.2241862]
[1739081614747,0.62781299,96986.0,96985.0,0.2241862]
[1739081615351,0.26701299,96986.0,96985.0,0.2241862]
[1739081615552,0.62781299,96986.0,96985.0,0.2241862]
[1739081616854,0.57767783,96986.0,96985.0,0.2241862]
[1739081618259,0.21687783,96986.0,96985.0,0.2241862]
[1739081618655,0.57767783,96986.0,96985.0,0.2241862]
[1739081619166,0.5679841,96986.0,96985.0,0.2241862]
[1739081623863,0.5679841,96986.0,96985.0,0.018]
[1739081627464,0.61812644,96986.0,96985.0,0.018]
[1739081633869,0.25732644,96986.0,96985.0,0.018]
[1739081634171,0.61812644,96986.0,96985.0,0.018]
[1739081634471,0.25732644,96986.0,96985.0,0.018]
[1739081634665,0.61812644,96986.0,96985.0,0.018]
[1739081636170,0.25732644,96986.0,96985.0,0.018]
[1739081636360,0.61812644,96986.0,96985.0,0.018]
[1739081638476,0.69938234,96986.0,96976.0,0.00015463]
[1739081638671,0.3608,96977.0,96971.0,0.0314]
[1739081639674,0.2062138,96972.0,96971.0,0.0314]
[1739081641173,0.2062138,96972.0,96971.0,0.0324]
[1739081641366,0.2734538,96972.0,96970.0,0.01648227]
[1739081641781,0.2824538,96972.0,96971.0,0.001]
[1739081642674,1.0040538,96972.0,96970.0,0.01648227]
[1739081642974,1.0130538,96972.0,96970.0,0.01648227]
[1739081643881,1.06319614,96972.0,96970.0,0.01648227]
[1739081644271,1.05419614,96972.0,96970.0,0.01648227]
[1739081644472,0.2202,96971.0,96970.0,0.01648227]
[1739081644979,0.2202,96971.0,96970.0,0.01748227]
[1739081645585,0.2292,96971.0,96970.0,0.01748227]
[1739081645777,0.2382,96971.0,96970.0,0.01748227]
[1739081647083,0.35871915,96971.0,96970.0,0.01748227]
[1739081648277,1.08031915,96971.0,96970.0,0.01748227]
[1739081650077,1.28653505,96971.0,96970.0,0.01748227]
[1739081653890,1.21615824,96971.0,96970.0,0.01748227]
[1739081658496,1.28615824,96971.0,96970.0,0.01748227]
[1739081659592,1.27715824,96971.0,96970.0,0.01648227]
[1739081659793,1.28615824,96971.0,96970.0,0.01748227]
[1739081660497,1.31715824,96971.0,96970.0,0.01748227]
[1739081662908,1.24715824,96971.0,96970.0,0.01748227]
[1739081663207,1.31439824,96971.0,96970.0,0.01748227]
[1739081664210,1.39439824,96971.0,96970.0,0.01748227]
[1739081665609,1.46232018,96971.0,96970.0,0.01748227]
[1739081667406,1.43132018,96971.0,96970.0,0.01748227]
[1739081667712,1.35132018,96971.0,96970.0,0.01748227]
[1739081670020,1.43023469,96971.0,96970.0,0.01748227]
[1739081675007,1.35132018,96971.0,96970.0,0.01748227]
[1739081678619,0.62972018,96971.0,96970.0,0.01748227]
[1739081679016,1.35132018,96971.0,96970.0,0.01748227]
[1739081680925,0.62972018,96971.0,96970.0,0.01748227]
[1739081681124,1.35132018,96971.0,96970.0,0.01748227]
[1739081683327,1.59132018,96971.0,96970.0,0.01748227]
[1739081685228,1.35132018,96971.0,96970.0,0.01748227]
[1739081687132,1.30117784,96971.0,96970.0,0.01748227]
[1739081691019,1.47380232,96971.0,96970.0,0.01748227]
[1739081691234,1.26758642,96971.0,96965.0,0.0938]
[1739081691429,0.2062266,96966.0,96965.0,0.0938]
[1739081692733,0.2152266,96966.0,96965.0,0.0938]
[1739081693731,0.41997094,96966.0,96965.0,0.0938]
[1739081693929,0.48997094,96966.0,96965.0,0.0938]
[1739081694338,1.21157094,96966.0,96965.0,0.0938]
[1739081694941,1.43177094,96966.0,96965.0,0.0938]
[1739081698737,0.71017094,96966.0,96965.0,0.0938]
[1739081698939,1.43177094,96966.0,96965.0,0.0938]
[1739081700446,1.35410809,96966.0,96965.0,0.0938]
[1739081700644,1.28410809,96966.0,96965.0,0.0938]
[1739081703945,1.36410809,96966.0,96965.0,0.0938]
[1739081705038,1.35510809,96966.0,96965.0,0.0938]
[1739081705235,1.35610809,96966.0,96965.0,0.0938]
[1739081705430,1.34710809,96966.0,96965.0,0.0938]
[1739081705635,1.44307004,96966.0,96965.0,0.0938]
[1739081709438,1.52221239,96966.0,96965.0,0.0938]
[1739081710246,1.44221239,96966.0,96965.0,0.0938]
[1739081713145,1.34725044,96966.0,96965.0,0.0938]
[1739081716448,1.26810809,96966.0,96965.0,0.0938]
[1739081725355,1.34588437,96966.0,96965.0,0.0938]
[1739081727858,1.54588437,96966.0,96965.0,0.09067909]
[1739081728065,0.2062842,96939.0,96933.0,0.0328]
[1739081728247,0.0515633,96954.0,96933.0,0.0328]
[1739081728248,0.3608,96934.0,96933.0,0.0328]
[1739081730062,0.5850947,96934.0,96933.0,0.0328]
[1739081732863,0.5953766,96934.0,96933.0,0.0328]
[1739081733558,0.5850947,96934.0,96933.0,0.0328]
[1739081733759,0.3788,96934.0,96933.0,0.5390968]
[1739081734255,0.06815955,96934.0,96933.0,0.5390968]
[1739081734454,0.1849107,96935.0,96934.0,0.2062947]
[1739081734853,0.1849107,96935.0,96934.0,0.5062947]
[1739081736255,0.1939107,96935.0,96934.0,0.5062947]
[1739081736560,0.2029107,96935.0,96934.0,0.5072947]
[1739081737863,0.018,96935.0,96934.0,0.5072947]
[1739081740962,0.5457107,96954.0,96942.0,0.2062776]
[1739081741159,0.36168001,96972.0,96946.0,0.7216]
[1739081741457,0.36168001,96972.0,96969.0,0.2062202]
[1739081741458,0.3608,96972.0,96969.0,0.2062202]
[1739081742160,0.21572916,96971.0,96969.0,0.2062202]
[1739081742468,0.21572916,96971.0,96970.0,0.0617]
[1739081743153,0.16582916,96971.0,96970.0,0.0617]
[1739081743557,0.16582916,96971.0,96970.0,0.0657]
[1739081744168,0.16582916,96971.0,96970.0,0.4265]
[1739081744862,0.00015473,96979.0,96978.0,0.2062011]
[1739081746170,0.00015473,96979.0,96978.0,0.2072011]
[1739081746671,0.00154731,96990.0,96987.0,0.2061808]
[1739081746868,0.00154731,96990.0,96980.0,0.04825155]
[1739081747168,0.00154731,96990.0,96988.0,0.2061795]
[1739081747760,0.00454731,96990.0,96988.0,0.2061795]
[1739081748469,0.00954731,96990.0,96988.0,0.2061795]
[1739081749775,0.00654731,96990.0,96988.0,0.2061795]
[1739081749957,0.00954731,96990.0,96988.0,0.2061795]
[1739081752063,0.00954731,96990.0,96989.0,0.0326]
[1739081752963,0.00654731,96990.0,96989.0,0.0326]
[1739081753165,0.00754731,96990.0,96989.0,0.0326]
[1739081753473,0.00254731,96990.0,96989.0,0.0326]
[1739081753673,0.00454731,96990.0,96989.0,0.0326]
[1739081760672,0.00454731,96990.0,96989.0,0.2061777]
[1739081764667,0.00454731,96990.0,96983.0,0.3608]
[1739081764880,0.21072341,96990.0,96983.0,0.5669891]
[1739081765177,0.21072341,96990.0,96984.0,0.2061882]
[1739081765777,0.20972341,96990.0,96984.0,0.2061882]
[1739081765979,0.21072341,96990.0,96984.0,0.2061882]
[1739081766374,0.20972341,96990.0,96984.0,0.2061882]
[1739081766681,0.21072341,96990.0,96984.0,0.2061882]
[1739081766886,0.0311,96989.0,96984.0,0.2061882]
[1739081767272,0.0311,96989.0,96983.0,0.3608]
[1739081767472,0.0311,96989.0,96985.0,0.2061856]
[1739081768881,0.0341,96989.0,96985.0,0.2061856]
[1739081769269,0.0331,96989.0,96985.0,0.2061856]
[1739081769473,0.0341,96989.0,96985.0,0.2061856]
[1739081769677,0.0341,96989.0,96983.0,0.3608]
[1739081769884,0.0341,96989.0,96986.0,0.2061825]
[1739081770587,0.0305,96988.0,96986.0,0.2061825]
[1739081771988,0.0315,96988.0,96986.0,0.2061825]
[1739081772187,0.0315,96988.0,96987.0,0.206182]
[1739081785589,0.001,96988.0,96987.0,0.206182]
[1739081797589,0.001,96988.0,96986.0,0.06716]
[1739081797590,0.00015473,96999.0,96986.0,0.1187056]
[1739081797798,0.00015473,96999.0,96998.0,0.5669586]
[1739081799103,0.00115473,96999.0,96998.0,0.5729586]
[1739081799597,0.00215473,96999.0,96998.0,0.5789586]
[1739081800804,0.67458655,97026.0,96998.0,0.3728]
[1739081800987,0.2061127,97020.0,97015.0,0.2061224]
[1739081801391,0.03398001,97017.0,97015.0,0.2061224]
[1739081801607,0.0331,97017.0,97015.0,0.2061224]
[1739081802399,0.0317,97016.0,97015.0,0.2061224]
[1739081802592,0.0327,97016.0,97015.0,0.2061224]
[1739081803194,0.0317,97016.0,97015.0,0.2061224]
[1739081803387,0.0327,97016.0,97015.0,0.2061224]
[1739081804193,0.002,97016.0,97015.0,0.5669224]
[1739081810806,0.00015464,97025.0,97024.0,0.2061033]
[1739081812504,0.00015464,97025.0,97024.0,0.2091033]
[1739081812699,0.00015464,97025.0,97024.0,0.2121033]
[1739081814812,0.00015464,97025.0,97024.0,0.5729033]
[1739081817208,0.00015464,97025.0,97024.0,0.2121033]
[1739081817415,0.00015464,97025.0,97024.0,0.5729033]
[1739081822312,0.00015464,97025.0,97024.0,0.2121033]
[1739081822515,0.00015464,97025.0,97024.0,0.5729033]
[1739081822713,0.00015464,97025.0,97024.0,0.2121033]
[1739081823014,0.00015464,97025.0,97024.0,0.5729033]
[1739081827815,0.20625584,97025.0,97024.0,0.5729033]
[1739081829215,0.20625584,97025.0,97024.0,0.3668]
[1739081829514,0.2061033,97024.0,97016.0,0.3608]
[1739081829717,0.031,97024.0,97016.0,0.3608]
[1739081829910,0.3608,97017.0,97012.0,0.2061283]
[1739081830823,0.3608,97017.0,97010.0,0.04825155]
[1739081831121,0.2061248,97014.0,97013.0,0.2061263]
[1739081832525,0.2071248,97014.0,97013.0,0.2141263]
[1739081833115,0.2071248,97014.0,97013.0,0.2121263]
[1739081834624,0.2081248,97014.0,97013.0,0.2181263]
[1739081851229,0.2081248,97014.0,97013.0,0.012]
[1739081852027,0.2061394,97007.0,97006.0,0.00015464]
[1739081853228,0.4263394,97007.0,97006.0,0.00015464]
[1739081853532,0.4263394,97007.0,96996.0,0.00154628]
[1739081853533,0.2061607,96997.0,96996.0,0.00154628]
[1739081853833,0.5669607,96997.0,96996.0,0.00154628]
[1739081854825,0.5679607,96997.0,96996.0,0.00954628]
[1739081855427,0.5689607,96997.0,96996.0,0.00954628]
[1739081857535,0.75376915,96997.0,96996.0,0.00954628]
[1739081858343,0.2061798,96988.0,96987.0,0.00015464]
[1739081859838,0.2151798,96988.0,96987.0,0.00015464]
[1739081860335,0.2241798,96988.0,96987.0,0.00015464]
[1739081861426,0.2151798,96988.0,96987.0,0.00015464]
[1739081861633,0.2241798,96988.0,96987.0,0.00015464]
[1739081863327,0.2241798,96988.0,96987.0,0.20633664]
[1739081864744,0.018,96988.0,96987.0,0.20633664]
[1739081874542,0.018,96988.0,96987.0,0.00015464]
[1739081874750,0.2062224,96968.0,96960.0,0.24722286]
[1739081874946,0.78872,96968.0,96960.0,0.24722286]
[1739081875153,0.2062266,96966.0,96960.0,0.24722286]
[1739081875851,0.2062288,96965.0,96964.0,0.24722286]
[1739081877546,0.5769899,96965.0,96964.0,0.24722286]
[1739081878845,0.5779899,96965.0,96964.0,0.24722286]
[1739081879045,0.5789899,96965.0,96964.0,0.24722286]
[1739081879855,0.2062437,96958.0,96956.0,0.00015464]
[1739081881550,0.2072437,96958.0,96956.0,0.00015464]
[1739081881948,0.2082437,96958.0,96956.0,0.00015464]
[1739081891157,0.2062458,96957.0,96956.0,0.00015464]
[1739081892451,0.2082458,96957.0,96956.0,0.00015464]
[1739081894665,0.002,96957.0,96956.0,0.00015464]
[1739081895161,0.002,96957.0,96956.0,0.03205464]
[1739081896755,0.01036027,96975.0,96956.0,0.03205464]
[1739081896756,0.00015464,96975.0,96956.0,0.03205464]
[1739081896958,0.00015464,96975.0,96973.0,0.20621]
[1739081897265,0.00015464,96975.0,96974.0,0.0318]
[1739081897467,0.00015464,96975.0,96974.0,0.0639]
[1739081897860,0.00115464,96975.0,96974.0,0.0639]
[1739081898560,0.00015464,96975.0,96974.0,0.0947]
[1739081898764,0.00115464,96975.0,96974.0,0.0947]
[1739081899167,0.00215464,96975.0,96974.0,0.0947]
[1739081900464,0.00115464,96975.0,96974.0,0.0967]
[1739081900762,0.00215464,96975.0,96974.0,0.0967]
[1739081902069,0.00115464,96975.0,96974.0,0.0967]
[1739081902269,0.00215464,96975.0,96974.0,0.0967]
[1739081902757,0.18480845,96995.0,96994.0,0.2061671]
[1739081902962,0.2061488,97003.0,97002.0,0.2061501]
[1739081903257,0.2061373,97009.0,96994.0,0.3608]
[1739081903461,0.2061416,97006.0,97005.0,0.2061425]
[1739081903664,0.06712,97013.0,96994.0,0.3608]
[1739081903968,0.06712,97013.0,96970.0,0.07350324]
[1739081903969,0.2061607,96997.0,96996.0,0.00015464]
[1739081904357,0.2732807,96997.0,96996.0,0.00015464]
[1739081904561,0.06712,96997.0,96978.0,0.3608]
[1739081904871,0.2061858,96986.0,96980.0,0.2061953]
[1739081905963,0.2061858,96986.0,96981.0,0.2061937]
[1739081906169,0.2061858,96986.0,96978.0,0.3608]
[1739081906369,0.3608,96991.0,96983.0,0.20619]
[1739081906572,0.001,96986.0,96983.0,0.20619]
[1739081906772,0.001,96986.0,96978.0,0.3608]
[1739081906969,0.3608,96991.0,96978.0,0.3608]
[1739081907173,0.002,96986.0,96980.0,0.002]
[1739081907471,0.002,96986.0,96985.0,0.2061862]
[1739081908767,0.002,96986.0,96985.0,0.2081862]
[1739081924582,0.2081841,96986.0,96985.0,0.002]
[1739081932788,0.2081841,96986.0,96985.0,0.2081862]
[1739081934580,0.39323987,96986.0,96985.0,0.2081862]
[1739081937997,0.2081841,96986.0,96985.0,0.2081862]
[1739081941787,0.26792382,96986.0,96985.0,0.2081862]
[1739081947800,0.2081841,96986.0,96985.0,0.2081862]
[1739081947996,0.2081841,96986.0,96985.0,0.002]